[Event "Mistrovství Čech mládeže 2023 - HD16"]
[Site "Harrachov, Czech Republic"]
[Date "2023.10.23"]
[Round "3.7"]
[White "Tesař, Jakub"]
[Black "Garabik, Marek"]
[Result "1-0"]
[TimeControl "90m + 30s"]
[WhiteElo "1893"]
[BlackElo "1697"]

1. e4 {[%clk 01:30:42]} {[%emt 00:00:18]} e6 {[%clk 01:29:50]} {[%emt
00:01:10]} 2. d4 {[%clk 01:30:54]} {[%emt 00:00:17]} d5 {[%clk 01:30:19]}
{[%emt 00:00:02]} 3. Nd2 {[%clk 01:31:03]} {[%emt 00:00:21]} Nc6 {[%clk
01:29:42]} {[%emt 00:01:06]} 4. Ngf3 {[%clk 01:31:19]} {[%emt 00:00:13]} Nf6
{[%clk 01:29:54]} {[%emt 00:00:20]} 5. e5 {[%clk 01:31:40]} {[%emt 00:00:09]}
Nd7 {[%clk 01:30:22]} {[%emt 00:00:01]} 6. Nb3 {[%clk 01:31:57]} {[%emt
00:00:12]} f6 {[%clk 01:28:14]} {[%emt 00:02:39]} 7. Bb5 {[%clk 01:32:12]}
{[%emt 00:00:15]} a6 {[%clk 01:24:54]} {[%emt 00:03:50]} 8. Bxc6 {[%clk
01:32:30]} {[%emt 00:00:13]} bxc6 {[%clk 01:25:22]} {[%emt 00:00:02]} 9. O-O
{[%clk 01:32:34]} {[%emt 00:00:25]} a5 {[%clk 01:20:29]} {[%emt 00:05:24]} 10.
Bd2 {[%clk 01:32:15]} {[%emt 00:00:49]} Bb4 {[%clk 01:16:00]} {[%emt 00:04:58]}
11. c3 {[%clk 01:24:39]} {[%emt 00:08:06]} Be7 {[%clk 01:11:50]} {[%emt
00:04:40]} 12. c4 {[%clk 01:18:32]} {[%emt 00:06:37]} Bb4 {[%clk 01:09:56]}
{[%emt 00:02:23]} 13. a3 {[%clk 01:11:02]} {[%emt 00:08:00]} Bxd2 {[%clk
01:09:41]} {[%emt 00:00:45]} 14. Qxd2 {[%clk 01:11:23]} {[%emt 00:00:09]} a4
{[%clk 01:10:05]} {[%emt 00:00:06]} 15. Na5 {[%clk 01:08:31]} {[%emt 00:03:22]}
Nb8 {[%clk 01:08:43]} {[%emt 00:01:53]} 16. Qb4 {[%clk 01:04:28]} {[%emt
00:04:32]} Bd7 {[%clk 01:06:28]} {[%emt 00:02:45]} 17. c5 {[%clk 00:58:01]}
{[%emt 00:06:56]} Na6 {[%clk 00:59:55]} {[%emt 00:07:04]} 18. Qxa4 {[%clk
00:57:40]} {[%emt 00:00:52]} Qb8 {[%clk 00:58:11]} {[%emt 00:02:14]} 19. b4
{[%clk 00:52:23]} {[%emt 00:05:47]} Qb5 {[%clk 00:57:33]} {[%emt 00:01:07]} 20.
Qxb5 {[%clk 00:47:43]} {[%emt 00:05:10]} cxb5 {[%clk 00:58:02]} {[%emt
00:00:01]} 21. c6 {[%clk 00:47:57]} {[%emt 00:00:16]} Bc8 {[%clk 00:58:31]} 22.
Rac1 {[%clk 00:46:21]} {[%emt 00:02:07]} Rb8 {[%clk 00:58:31]} {[%emt
00:00:31]} 23. Rc3 {[%clk 00:45:46]} {[%emt 00:01:04]} Rb6 {[%clk 00:57:46]}
{[%emt 00:01:15]} 24. Re1 {[%clk 00:45:24]} {[%emt 00:00:52]} Kf7 {[%clk
00:57:07]} {[%emt 00:01:08]} 25. Ree3 {[%clk 00:44:25]} {[%emt 00:01:30]} Nb8
{[%clk 00:56:49]} {[%emt 00:00:48]} 26. Ne1 {[%clk 00:44:17]} {[%emt 00:00:38]}
Ke7 {[%clk 00:55:24]} {[%emt 00:01:55]} 27. Nd3 {[%clk 00:44:28]} {[%emt
00:00:19]} Rf8 {[%clk 00:53:14]} {[%emt 00:02:40]} 28. Rg3 {[%clk 00:40:14]}
{[%emt 00:04:44]} Rf7 {[%clk 00:52:41]} {[%emt 00:01:03]} 29. Rh3 {[%clk
00:40:18]} {[%emt 00:00:26]} h6 {[%clk 00:51:02]} {[%emt 00:02:09]} 30. Rg3
{[%clk 00:39:41]} {[%emt 00:01:07]} Ba6 {[%clk 00:49:30]} {[%emt 00:02:02]} 31.
Rg6 {[%clk 00:38:17]} {[%emt 00:01:54]} Bc8 {[%clk 00:49:58]} {[%emt 00:00:02]}
32. Kf1 {[%clk 00:38:05]} {[%emt 00:00:41]} Ba6 {[%clk 00:49:40]} {[%emt
00:00:48]} 33. Ke2 {[%clk 00:38:29]} {[%emt 00:00:06]} Bc8 {[%clk 00:50:07]}
{[%emt 00:00:02]} 34. g3 {[%clk 00:36:20]} {[%emt 00:02:40]} Ba6 {[%clk
00:49:02]} {[%emt 00:01:35]} 35. Kf1 {[%clk 00:36:33]} {[%emt 00:00:16]} Bc8
{[%clk 00:49:24]} {[%emt 00:00:10]} 36. Kg2 {[%clk 00:37:01]} {[%emt 00:00:01]}
Ba6 {[%clk 00:49:53]} {[%emt 00:00:01]} 37. Rc2 {[%clk 00:36:43]} {[%emt
00:00:48]} Bc8 {[%clk 00:49:54]} {[%emt 00:00:29]} 38. Kh3 {[%clk 00:36:57]}
{[%emt 00:00:16]} Ba6 {[%clk 00:49:43]} {[%emt 00:00:41]} 39. Kh4 {[%clk
00:37:20]} {[%emt 00:00:06]} Bc8 {[%clk 00:50:12]} {[%emt 00:00:01]} 40. Kh5
{[%clk 00:37:24]} {[%emt 00:00:26]} Ra6 {[%clk 00:48:46]} {[%emt 00:01:57]} 41.
h3 {[%clk 00:30:33]} {[%emt 00:07:21]} Rb6 {[%clk 00:48:49]} {[%emt 00:00:27]}
42. h4 {[%clk 00:30:09]} {[%emt 00:00:54]} Ra6 {[%clk 00:46:16]} {[%emt
00:03:04]} 43. exf6+ {[%clk 00:16:34]} {[%emt 00:14:04]} gxf6 {[%clk 00:46:45]}
{[%emt 00:00:01]} 44. Rg8 {[%clk 00:16:41]} {[%emt 00:00:22]} e5 {[%clk
00:43:15]} {[%emt 00:04:00]} 45. Rxc8 {[%clk 00:16:25]} {[%emt 00:00:46]} Nd7
{[%clk 00:42:28]} {[%emt 00:01:18]} 46. cxd7 {[%clk 00:16:19]} {[%emt
00:00:36]} Re6 {[%clk 00:40:30]} {[%emt 00:02:28]} 47. d8=Q# 1-0

[Event "Mistrovství Čech mládeže 2023 - HD16"]
[Site "Harrachov, Czech Republic"]
[Date "2023.10.23"]
[Round "3.8"]
[White "Síleš, Jan"]
[Black "Barták, Josef"]
[Result "1-0"]
[TimeControl "90m + 30s"]
[WhiteElo "1839"]
[BlackElo "1476"]

1. d4 {[%clk 01:30:56]} {[%emt 00:00:03]} d5 {[%clk 01:30:54]} {[%emt
00:00:06]} 2. c4 {[%clk 01:31:09]} {[%emt 00:00:17]} c6 {[%clk 01:31:19]}
{[%emt 00:00:05]} 3. Nc3 {[%clk 01:31:33]} {[%emt 00:00:06]} dxc4 {[%clk
01:31:33]} {[%emt 00:00:16]} 4. e3 {[%clk 01:31:50]} {[%emt 00:00:13]} b5
{[%clk 01:31:47]} {[%emt 00:00:16]} 5. a4 {[%clk 01:32:06]} {[%emt 00:00:13]}
b4 {[%clk 01:31:56]} {[%emt 00:00:21]} 6. Ne4 {[%clk 01:32:24]} {[%emt
00:00:12]} Qd5 {[%clk 01:31:44]} {[%emt 00:00:41]} 7. Nd2 {[%clk 01:32:14]}
{[%emt 00:00:40]} c3 {[%clk 01:32:02]} {[%emt 00:00:12]} 8. bxc3 {[%clk
01:32:34]} {[%emt 00:00:11]} bxc3 {[%clk 01:32:25]} {[%emt 00:00:07]} 9. Ndf3
{[%clk 01:31:11]} {[%emt 00:01:53]} Nf6 {[%clk 01:23:30]} {[%emt 00:09:24]} 10.
Ba3 {[%clk 01:30:56]} {[%emt 00:00:46]} Bf5 {[%clk 01:19:20]} {[%emt 00:04:40]}
11. Bd3 {[%clk 01:28:49]} {[%emt 00:02:36]} Nbd7 {[%clk 01:18:04]} {[%emt
00:01:47]} 12. Ne2 {[%clk 01:26:03]} {[%emt 00:03:14]} Ne4 {[%clk 01:10:36]}
{[%emt 00:08:00]} 13. Qc2 {[%clk 01:16:38]} {[%emt 00:09:55]} e6 {[%clk
01:04:16]} {[%emt 00:06:52]} 14. Bxf8 {[%clk 01:12:49]} {[%emt 00:04:18]} Kxf8
{[%clk 00:52:41]} {[%emt 00:12:05]} 15. Nf4 {[%clk 01:12:38]} {[%emt 00:00:41]}
Qa5 {[%clk 00:46:32]} {[%emt 00:06:39]} 16. Bxe4 {[%clk 01:11:42]} {[%emt
00:01:26]} Bxe4 {[%clk 00:46:42]} {[%emt 00:00:21]} 17. Qxe4 {[%clk 01:11:58]}
{[%emt 00:00:14]} c2+ {[%clk 00:45:53]} {[%emt 00:01:18]} 18. Nd2 {[%clk
01:10:22]} {[%emt 00:02:06]} g5 {[%clk 00:45:02]} {[%emt 00:01:21]} 19. Ne2
{[%clk 01:09:47]} {[%emt 00:01:04]} Ke7 {[%clk 00:44:52]} {[%emt 00:00:41]} 20.
Qxc2 {[%clk 01:09:26]} {[%emt 00:00:51]} 1-0

[Event "Mistrovství Čech mládeže 2023 - HD16"]
[Site "Harrachov, Czech Republic"]
[Date "2023.10.23"]
[Round "3.9"]
[White "Martinkovič, Adam"]
[Black "Dvořák, Jan"]
[Result "0-1"]
[TimeControl "90m + 30s"]
[WhiteElo "1680"]
[BlackElo "1789"]

1. c4 {[%clk 01:24:46]} {[%emt 00:06:12]} e5 {[%clk 01:30:53]} {[%emt
00:00:07]} 2. Nc3 {[%clk 01:25:07]} {[%emt 00:00:08]} Nc6 {[%clk 01:31:12]}
{[%emt 00:00:13]} 3. g3 {[%clk 01:25:28]} {[%emt 00:00:08]} Bc5 {[%clk
01:31:30]} {[%emt 00:00:12]} 4. Bg2 {[%clk 01:25:49]} {[%emt 00:00:08]} a6
{[%clk 01:31:45]} {[%emt 00:00:16]} 5. e3 {[%clk 01:25:59]} {[%emt 00:00:19]}
d6 {[%clk 01:31:56]} {[%emt 00:00:21]} 6. Nge2 {[%clk 01:26:16]} {[%emt
00:00:12]} Ba7 {[%clk 01:32:01]} {[%emt 00:00:26]} 7. d4 {[%clk 01:26:06]}
{[%emt 00:00:39]} exd4 {[%clk 01:31:37]} {[%emt 00:00:54]} 8. exd4 {[%clk
01:26:28]} {[%emt 00:00:08]} Nge7 {[%clk 01:31:32]} {[%emt 00:00:35]} 9. O-O
{[%clk 01:26:23]} {[%emt 00:00:34]} Nf5 {[%clk 01:31:29]} {[%emt 00:00:35]} 10.
Re1 {[%clk 01:25:31]} {[%emt 00:01:21]} O-O {[%clk 01:31:22]} {[%emt 00:00:37]}
11. d5 {[%clk 01:25:00]} {[%emt 00:01:01]} Ne5 {[%clk 01:31:11]} {[%emt
00:00:41]} 12. b3 {[%clk 01:24:42]} {[%emt 00:00:48]} Qf6 {[%clk 01:26:59]}
{[%emt 00:04:43]} 13. Bf4 {[%clk 01:17:41]} {[%emt 00:07:30]} g6 {[%clk
01:14:29]} {[%emt 00:13:00]} 14. Ne4 {[%clk 01:16:30]} {[%emt 00:01:41]} Qg7
{[%clk 01:14:15]} {[%emt 00:00:45]} 15. Qd2 {[%clk 01:15:34]} {[%emt 00:01:26]}
h6 {[%clk 01:10:14]} {[%emt 00:04:32]} 16. h3 {[%clk 01:11:18]} {[%emt
00:04:45]} g5 {[%clk 01:09:42]} {[%emt 00:01:01]} 17. Bxe5 {[%clk 01:07:17]}
{[%emt 00:04:30]} Qxe5 {[%clk 01:05:06]} {[%emt 00:05:06]} 18. Kh2 {[%clk
01:02:07]} {[%emt 00:05:40]} Qg7 {[%clk 00:59:09]} {[%emt 00:06:27]} 19. Rac1
{[%clk 00:55:56]} {[%emt 00:06:41]} Ne7 {[%clk 00:53:18]} {[%emt 00:06:22]} 20.
f4 {[%clk 00:54:44]} {[%emt 00:01:41]} g4 {[%clk 00:47:30]} {[%emt 00:06:18]}
21. h4 {[%clk 00:54:59]} {[%emt 00:00:14]} Nf5 {[%clk 00:44:55]} {[%emt
00:03:05]} 22. Rc3 {[%clk 00:52:38]} {[%emt 00:02:51]} Re8 {[%clk 00:40:18]}
{[%emt 00:05:08]} 23. Rd3 {[%clk 00:50:04]} {[%emt 00:03:03]} Bd7 {[%clk
00:39:36]} {[%emt 00:01:13]} 24. b4 {[%clk 00:45:59]} {[%emt 00:04:35]} Ne3
{[%clk 00:38:39]} {[%emt 00:01:26]} 25. Rxe3 {[%clk 00:41:53]} {[%emt
00:04:35]} Bxe3 {[%clk 00:37:39]} {[%emt 00:01:31]} 26. Qxe3 {[%clk 00:42:16]}
{[%emt 00:00:07]} f5 {[%clk 00:37:56]} {[%emt 00:00:13]} 27. Nd4 {[%clk
00:42:14]} {[%emt 00:00:31]} fxe4 {[%clk 00:34:22]} {[%emt 00:04:05]} 28. f5
{[%clk 00:40:16]} {[%emt 00:02:28]} Re5 {[%clk 00:29:05]} {[%emt 00:05:46]} 29.
Ne6 {[%clk 00:37:56]} {[%emt 00:02:49]} Bxe6 {[%clk 00:26:14]} {[%emt
00:03:22]} 30. fxe6 {[%clk 00:38:20]} {[%emt 00:00:06]} b5 {[%clk 00:25:46]}
{[%emt 00:00:59]} 31. Bxe4 {[%clk 00:37:10]} {[%emt 00:01:40]} bxc4 {[%clk
00:23:22]} {[%emt 00:02:54]} 32. Qd4 {[%clk 00:36:23]} {[%emt 00:01:16]} Rf8
{[%clk 00:21:53]} {[%emt 00:02:00]} 33. Re2 {[%clk 00:36:32]} {[%emt 00:00:22]}
Qf6 {[%clk 00:20:39]} {[%emt 00:01:44]} 34. Qxc4 {[%clk 00:34:52]} {[%emt
00:02:10]} Qf1 {[%clk 00:20:13]} {[%emt 00:00:55]} 35. Qc2 {[%clk 00:34:51]}
{[%emt 00:00:31]} Qh3+ {[%clk 00:19:49]} {[%emt 00:00:54]} 0-1

[Event "Mistrovství Čech mládeže 2023 - HD16"]
[Site "Harrachov, Czech Republic"]
[Date "2023.10.23"]
[Round "3.10"]
[White "Bohatyrov, Mykola"]
[Black "Vyšinský, Otakar"]
[Result "1/2-1/2"]
[TimeControl "90m + 30s"]
[WhiteElo "1725"]
[BlackElo "1599"]

1. d4 {[%clk 01:30:57]} {[%emt 00:00:03]} d5 {[%clk 01:30:52]} {[%emt
00:00:08]} 2. c4 {[%clk 01:31:14]} {[%emt 00:00:14]} c6 {[%clk 01:31:15]}
{[%emt 00:00:08]} 3. cxd5 {[%clk 01:31:39]} {[%emt 00:00:05]} cxd5 {[%clk
01:31:38]} {[%emt 00:00:06]} 4. Bf4 {[%clk 01:32:01]} {[%emt 00:00:08]} Nc6
{[%clk 01:30:29]} {[%emt 00:01:39]} 5. e3 {[%clk 01:32:15]} {[%emt 00:00:16]}
Nf6 {[%clk 01:29:08]} {[%emt 00:01:21]} 6. Nc3 {[%clk 01:32:39]} {[%emt
00:00:07]} a6 {[%clk 01:29:05]} {[%emt 00:01:03]} 7. Bd3 {[%clk 01:32:51]}
{[%emt 00:00:17]} e6 {[%clk 01:28:06]} {[%emt 00:01:29]} 8. h3 {[%clk
01:33:04]} {[%emt 00:00:17]} Bd6 {[%clk 01:26:57]} {[%emt 00:01:39]} 9. Bxd6
{[%clk 01:31:00]} {[%emt 00:02:34]} Qxd6 {[%clk 01:27:17]} {[%emt 00:00:10]} 10.
Nf3 {[%clk 01:31:22]} {[%emt 00:00:08]} O-O {[%clk 01:25:49]} {[%emt 00:01:57]}
11. O-O {[%clk 01:31:03]} {[%emt 00:00:49]} b5 {[%clk 01:18:45]} {[%emt
00:07:35]} 12. Rc1 {[%clk 01:31:23]} {[%emt 00:00:10]} Bb7 {[%clk 01:17:09]}
{[%emt 00:02:05]} 13. Qe2 {[%clk 01:29:48]} {[%emt 00:02:05]} Rfe8 {[%clk
01:09:08]} {[%emt 00:08:32]} 14. Rfd1 {[%clk 01:28:52]} {[%emt 00:01:26]} Rac8
{[%clk 01:05:18]} {[%emt 00:04:20]} 15. a3 {[%clk 01:27:27]} {[%emt 00:01:55]}
Na5 {[%clk 00:56:11]} {[%emt 00:09:37]} 16. Ne5 {[%clk 01:25:43]} {[%emt
00:02:14]} Nc4 {[%clk 00:53:04]} {[%emt 00:03:36]} 17. f4 {[%clk 01:25:04]}
{[%emt 00:01:09]} Qe7 {[%clk 00:51:20]} {[%emt 00:02:14]} 18. Kh2 {[%clk
01:21:01]} {[%emt 00:04:32]} Nd7 {[%clk 00:46:29]} {[%emt 00:05:22]} 19. Nxc4
{[%clk 01:19:25]} {[%emt 00:02:06]} dxc4 {[%clk 00:44:48]} {[%emt 00:02:11]} 20.
Be4 {[%clk 01:19:48]} {[%emt 00:00:07]} Bxe4 {[%clk 00:41:43]} {[%emt
00:03:35]} 21. Nxe4 {[%clk 01:20:11]} {[%emt 00:00:07]} f5 {[%clk 00:41:33]}
{[%emt 00:00:40]} 22. Ng3 {[%clk 01:19:28]} {[%emt 00:01:12]} Nf6 {[%clk
00:40:58]} {[%emt 00:01:05]} 23. e4 {[%clk 01:18:36]} {[%emt 00:01:22]} Qc7
{[%clk 00:33:40]} {[%emt 00:07:49]} 24. e5 {[%clk 01:14:09]} {[%emt 00:04:57]}
Nd5 {[%clk 00:33:38]} {[%emt 00:00:31]} 25. Qf3 {[%clk 01:14:19]} {[%emt
00:00:20]} Qf7 {[%clk 00:31:34]} {[%emt 00:02:34]} 26. Ne2 {[%clk 01:14:28]}
{[%emt 00:00:22]} Red8 {[%clk 00:30:52]} {[%emt 00:01:12]} 27. g4 {[%clk
01:11:36]} {[%emt 00:03:21]} Rc7 {[%clk 00:28:48]} {[%emt 00:02:34]} 28. g5
{[%clk 01:11:25]} {[%emt 00:00:41]} Qe7 {[%clk 00:26:14]} {[%emt 00:03:04]} 29.
h4 {[%clk 01:08:55]} {[%emt 00:03:00]} a5 {[%clk 00:21:33]} {[%emt 00:05:11]}
30. Nc3 {[%clk 01:01:38]} {[%emt 00:07:47]} Nxc3 {[%clk 00:17:47]} {[%emt
00:04:16]} 31. Rxc3 {[%clk 01:01:09]} {[%emt 00:00:59]} Rd5 {[%clk 00:16:38]}
{[%emt 00:01:39]} 32. Rc2 {[%clk 01:01:09]} {[%emt 00:00:30]} Rcd7 {[%clk
00:16:06]} {[%emt 00:01:03]} 33. Qc3 {[%clk 00:59:54]} {[%emt 00:01:45]} Qd8
{[%clk 00:15:36]} {[%emt 00:01:01]} 34. Rcd2 {[%clk 01:00:17]} {[%emt
00:00:07]} Qb6 {[%clk 00:15:37]} {[%emt 00:00:28]} 35. Kg3 {[%clk 00:58:20]}
{[%emt 00:02:26]} Rc7 {[%clk 00:14:29]} {[%emt 00:01:38]} 36. Qe3 {[%clk
00:57:17]} {[%emt 00:01:33]} Kf7 {[%clk 00:12:44]} {[%emt 00:02:15]} 37. Qf3
{[%clk 00:54:39]} {[%emt 00:03:08]} Kg8 {[%clk 00:12:16]} {[%emt 00:00:58]} 38.
Qh5 {[%clk 00:52:47]} {[%emt 00:02:23]} Rc8 {[%clk 00:10:16]} {[%emt 00:02:30]}
39. g6 {[%clk 00:52:06]} {[%emt 00:01:11]} h6 {[%clk 00:10:29]} {[%emt
00:00:17]} 40. Qf3 {[%clk 00:50:37]} {[%emt 00:01:58]} b4 {[%clk 00:09:22]}
{[%emt 00:01:38]} 41. axb4 {[%clk 00:49:43]} {[%emt 00:01:24]} axb4 {[%clk
00:09:44]} {[%emt 00:00:08]} 42. Qe3 {[%clk 00:49:45]} {[%emt 00:00:29]} c3
{[%clk 00:09:20]} {[%emt 00:00:53]} 43. Rc2 {[%clk 00:49:02]} {[%emt 00:01:13]}
Qa5 {[%clk 00:05:36]} {[%emt 00:04:15]} 44. Rdc1 {[%clk 00:47:18]} {[%emt
00:02:14]} Rc4 {[%clk 00:05:02]} {[%emt 00:01:04]} 45. bxc3 {[%clk 00:46:49]}
{[%emt 00:00:59]} b3 {[%clk 00:05:04]} {[%emt 00:00:28]} 46. Rb2 {[%clk
00:46:46]} {[%emt 00:00:33]} Rb5 {[%clk 00:04:37]} {[%emt 00:00:56]} 47. Qd3
{[%clk 00:46:51]} {[%emt 00:00:25]} Qa4 {[%clk 00:02:29]} {[%emt 00:02:38]}
1/2-1/2

[Event "Mistrovství Čech mládeže 2023 - HD16"]
[Site "Harrachov, Czech Republic"]
[Date "2023.10.23"]
[Round "3.11"]
[White "Markina, Sofiia"]
[Black "Pressler, Tobias"]
[Result "0-1"]
[TimeControl "90m + 30s"]
[WhiteElo "1564"]
[BlackElo "1965"]

1. d4 {[%clk 01:30:58]} {[%emt 00:00:01]} d5 {[%clk 01:30:49]} {[%emt
00:00:11]} 2. c4 {[%clk 01:31:23]} {[%emt 00:00:04]} e6 {[%clk 01:31:15]}
{[%emt 00:00:04]} 3. Nc3 {[%clk 01:31:50]} {[%emt 00:00:04]} Nf6 {[%clk
01:31:28]} {[%emt 00:00:17]} 4. cxd5 {[%clk 01:31:50]} {[%emt 00:00:30]} exd5
{[%clk 01:31:47]} {[%emt 00:00:10]} 5. Bg5 {[%clk 01:31:55]} {[%emt 00:00:25]}
Be7 {[%clk 01:30:46]} {[%emt 00:01:31]} 6. Nf3 {[%clk 01:30:59]} {[%emt
00:01:26]} O-O {[%clk 01:30:11]} {[%emt 00:01:04]} 7. e3 {[%clk 01:30:19]}
{[%emt 00:01:10]} c6 {[%clk 01:29:53]} {[%emt 00:00:48]} 8. Bd3 {[%clk
01:26:50]} {[%emt 00:03:59]} Nbd7 {[%clk 01:30:17]} {[%emt 00:00:06]} 9. O-O
{[%clk 01:26:04]} {[%emt 00:01:17]} Re8 {[%clk 01:28:44]} {[%emt 00:02:03]} 10.
Qc2 {[%clk 01:23:42]} {[%emt 00:02:52]} Nf8 {[%clk 01:27:00]} {[%emt 00:02:14]}
11. h3 {[%clk 01:20:19]} {[%emt 00:03:53]} g6 {[%clk 01:24:48]} {[%emt
00:02:41]} 12. Bf4 {[%clk 01:14:29]} {[%emt 00:06:21]} Ne6 {[%clk 01:24:35]}
{[%emt 00:00:43]} 13. Bh2 {[%clk 01:14:18]} {[%emt 00:00:41]} Ng7 {[%clk
01:16:16]} {[%emt 00:08:49]} 14. Rfe1 {[%clk 01:09:32]} {[%emt 00:05:16]} Bf5
{[%clk 00:58:10]} {[%emt 00:18:35]} 15. Bxf5 {[%clk 00:59:03]} {[%emt
00:11:00]} Nxf5 {[%clk 00:57:35]} {[%emt 00:01:06]} 16. a3 {[%clk 00:51:13]}
{[%emt 00:08:21]} a6 {[%clk 00:52:41]} {[%emt 00:05:23]} 17. Rad1 {[%clk
00:47:34]} {[%emt 00:04:08]} Bd6 {[%clk 00:45:41]} {[%emt 00:07:30]} 18. Bxd6
{[%clk 00:40:25]} {[%emt 00:07:40]} Nxd6 {[%clk 00:45:56]} {[%emt 00:00:14]} 19.
Nd2 {[%clk 00:40:18]} {[%emt 00:00:38]} Qd7 {[%clk 00:36:03]} {[%emt 00:10:23]}
20. e4 {[%clk 00:33:56]} {[%emt 00:06:51]} dxe4 {[%clk 00:36:15]} {[%emt
00:00:18]} 21. Ndxe4 {[%clk 00:34:07]} {[%emt 00:00:19]} Nfxe4 {[%clk
00:35:38]} {[%emt 00:01:07]} 22. Nxe4 {[%clk 00:34:30]} {[%emt 00:00:08]} Nxe4
{[%clk 00:34:51]} {[%emt 00:01:17]} 23. Rxe4 {[%clk 00:34:54]} {[%emt
00:00:06]} Rxe4 {[%clk 00:34:47]} {[%emt 00:00:34]} 24. Qxe4 {[%clk 00:35:23]}
{[%emt 00:00:01]} Re8 {[%clk 00:34:39]} {[%emt 00:00:38]} 25. Qc2 {[%clk
00:35:11]} {[%emt 00:00:43]} Qd5 {[%clk 00:34:24]} {[%emt 00:00:45]} 26. Qd3
{[%clk 00:29:20]} {[%emt 00:06:21]} a5 {[%clk 00:27:17]} {[%emt 00:07:37]} 27.
Rc1 {[%clk 00:28:02]} {[%emt 00:01:48]} Rd8 {[%clk 00:22:21]} {[%emt 00:05:26]}
28. Re1 {[%clk 00:26:25]} {[%emt 00:02:06]} c5 {[%clk 00:21:58]} {[%emt
00:00:54]} 29. Rd1 {[%clk 00:22:52]} {[%emt 00:04:03]} Qxd4 {[%clk 00:20:42]}
{[%emt 00:01:45]} 30. Qxd4 {[%clk 00:23:08]} {[%emt 00:00:14]} Rxd4 {[%clk
00:21:08]} {[%emt 00:00:04]} 31. Rxd4 {[%clk 00:23:06]} {[%emt 00:00:32]} cxd4
{[%clk 00:21:33]} {[%emt 00:00:05]} 32. f4 {[%clk 00:23:24]} {[%emt 00:00:11]}
f5 {[%clk 00:21:12]} {[%emt 00:00:52]} 33. Kf2 {[%clk 00:23:03]} {[%emt
00:00:50]} Kf7 {[%clk 00:21:37]} {[%emt 00:00:05]} 34. Ke2 {[%clk 00:23:29]}
{[%emt 00:00:04]} Ke6 {[%clk 00:22:02]} {[%emt 00:00:05]} 35. Kd3 {[%clk
00:23:56]} {[%emt 00:00:04]} Kd5 {[%clk 00:22:26]} {[%emt 00:00:06]} 36. b3
{[%clk 00:24:14]} {[%emt 00:00:12]} Kc5 {[%clk 00:19:38]} {[%emt 00:03:18]} 37.
g4 {[%clk 00:23:00]} {[%emt 00:01:44]} Kd5 {[%clk 00:19:18]} {[%emt 00:00:49]}
38. g5 {[%clk 00:23:11]} {[%emt 00:00:19]} b6 {[%clk 00:19:30]} {[%emt
00:00:18]} 39. b4 {[%clk 00:23:21]} {[%emt 00:00:20]} a4 {[%clk 00:19:31]}
{[%emt 00:00:28]} 40. b5 {[%clk 00:23:21]} {[%emt 00:00:32]} Kc5 {[%clk
00:19:55]} {[%emt 00:00:05]} 41. h4 {[%clk 00:23:45]} {[%emt 00:00:06]} Kd5
{[%clk 00:20:19]} {[%emt 00:00:06]} 42. Kd2 {[%clk 00:23:29]} {[%emt 00:00:38]}
Kc4 {[%clk 00:20:45]} {[%emt 00:00:13]} 43. Kc2 {[%clk 00:23:41]} {[%emt
00:00:17]} Kxb5 {[%clk 00:21:09]} {[%emt 00:00:05]} 0-1